fUST/lending_fUST_20250208
["ID","MTS","AMOUNT","RATE_DAILY","PERIOD"]
[352138544,1738957840170,-500.0,0.00010958,2]
[352138546,1738957840179,-500.0,0.00010958,2]
[352138548,1738957840188,-553.95369155,0.00010958,2]
[352138550,1738957840198,-500.0,0.00010958,2]
[352138552,1738957840208,-500.0,0.00010958,2]
[352138554,1738957840218,-500.0,0.00010958,2]
[352138556,1738957840228,-500.0,0.00010958,2]
[352138558,1738957840238,-500.0,0.00010958,2]
[352138560,1738957840246,-500.0,0.00010958,2]
[352138562,1738957840255,-500.0,0.00010958,2]
[352138563,1738957840265,-503.64867428,0.00010958,2]
[352138565,1738957840276,-500.0,0.00010958,2]
[352138567,1738957840285,-500.0,0.00010958,2]
[352138569,1738957840295,-2503.53,0.00010958,2]
[352138571,1738957840304,-500.0,0.00010958,2]
[352138574,1738957840314,-259.32308056,0.00010958,2]
[352138575,1738957840324,-500.0,0.00010958,2]
[352138577,1738957840333,-500.0,0.00010958,2]
[352138579,1738957840342,-500.0,0.00010958,2]
[352138580,1738957840351,-2117.33,0.00010958,2]
[352138582,1738957840361,-500.0,0.00010958,2]
[352138583,1738957840371,-500.0,0.00010958,2]
[352138584,1738957840380,-500.0,0.00010958,2]
[352138586,1738957840388,-500.0,0.00010958,2]
[352138588,1738957840398,-500.0,0.00010958,2]
[352138589,1738957840407,-801.04,0.00010958,2]
[352138590,1738957840417,-500.0,0.00010958,2]
[352138591,1738957840426,-500.0,0.00010958,2]
[352138592,1738957840436,-500.0,0.00010958,2]
[352138593,1738957840445,-500.0,0.00010958,2]
[352138594,1738957840455,-500.0,0.00010958,2]
[352138595,1738957840464,-500.0,0.00010958,2]
[352138596,1738957840474,-500.0,0.00010958,2]
[352138597,1738957840483,-500.0,0.00010958,2]
[352138598,1738957840492,-500.0,0.00010958,2]
[352138599,1738957840501,-500.0,0.00010958,2]
[352138600,1738957840511,-500.0,0.00010958,2]
[352138601,1738957840521,-9615.74,0.00010958,2]
[352138602,1738957840531,-500.0,0.00010958,2]
[352138603,1738957840541,-500.0,0.00010958,2]
[352138604,1738957840550,-1519.57,0.00010958,2]
[352138605,1738957840560,-500.0,0.00010958,2]
[352138606,1738957840570,-704.91,0.00010958,2]
[352138607,1738957840582,-500.0,0.00010958,2]
[352138608,1738957840592,-500.0,0.00010958,2]
[352138609,1738957840602,-927.19,0.00010958,2]
[352138610,1738957840611,-500.0,0.00010958,2]
[352138611,1738957840621,-500.0,0.00010958,2]
[352138612,1738957840631,-500.0,0.00010958,2]
[352138613,1738957840640,-500.0,0.00010958,2]
[352138614,1738957840651,-2145.4,0.00010958,2]
[352138615,1738957840660,-500.0,0.00010958,2]
[352138616,1738957840670,-500.0,0.00010958,2]
[352138617,1738957840679,-500.0,0.00010958,2]
[352138618,1738957840689,-500.0,0.00010958,2]
[352138619,1738957840698,-500.0,0.00010958,2]
[352138620,1738957840708,-500.0,0.00010958,2]
[352138621,1738957840717,-500.0,0.00010958,2]
[352138622,1738957840727,-14073.6,0.00010958,2]
[352138623,1738957840737,-500.0,0.00010958,2]
[352138624,1738957840747,-876.77,0.00010958,2]
[352138625,1738957840756,-500.0,0.00010958,2]
[352138626,1738957840765,-500.0,0.00010958,2]
[352138627,1738957840774,-500.0,0.00010958,2]
[352138628,1738957840784,-500.0,0.00010958,2]
[352138629,1738957840794,-500.0,0.00010958,2]
[352138630,1738957840804,-642.58,0.00010958,2]
[352138631,1738957840813,-500.0,0.00010958,2]
[352138632,1738957840823,-500.0,0.00010958,2]
[352138633,1738957840832,-500.0,0.00010958,2]
[352138634,1738957840842,-500.0,0.00010958,2]
[352138635,1738957840852,-542.83017521,0.00010958,2]
[352138636,1738957840861,-368.09917147,0.00010958,2]
[352138637,1738957840871,-985.06,0.00010958,2]
[352138638,1738957840880,-500.0,0.00010958,2]
[352138639,1738957840890,-2013.84,0.00010958,2]
[352138640,1738957840900,-500.97557477,0.00010958,2]
[352138641,1738957840910,-500.0,0.00010958,2]
[352138642,1738957840920,-500.0,0.00010958,2]
[352138643,1738957840930,-500.0,0.00010958,2]
[352138644,1738957840942,-500.0,0.00010958,2]
[352138645,1738957840952,-500.0,0.00010958,2]
[352138646,1738957840963,-1087.63,0.00010958,2]
[352138647,1738957840973,-500.0,0.00010958,2]
[352138648,1738957840984,-500.0,0.00010958,2]
[352138649,1738957840994,-500.0,0.00010958,2]
[352138650,1738957841004,-500.0,0.00010958,2]
[352138651,1738957841013,-500.0,0.00010958,2]
[352138652,1738957841025,-500.0,0.00010958,2]
[352138653,1738957841039,-500.0,0.00010958,2]
[352138654,1738957841048,-500.0,0.00010958,2]
[352138655,1738957841058,-630.26,0.00010958,2]
[352138656,1738957841068,-500.0,0.00010958,2]
[352138657,1738957841080,-500.0,0.00010958,2]
[352138658,1738957841090,-689.04,0.00010958,2]
[352138659,1738957841099,-500.0,0.00010958,2]
[352138660,1738957841108,-592.96,0.00010958,2]
[352138661,1738957841118,-3889.68,0.00010958,2]
[352138662,1738957841128,-500.0,0.00010958,2]
[352138663,1738957841137,-500.0,0.00010958,2]
[352138664,1738957841147,-500.0,0.00010958,2]
[352138665,1738957841157,-500.0,0.00010958,2]
[352138666,1738957841166,-787.35,0.00010958,2]
[352138667,1738957841176,-500.0,0.00010958,2]
[352138668,1738957841185,-731.59,0.00010958,2]
[352138669,1738957841195,-500.0,0.00010958,2]
[352138670,1738957841204,-500.0,0.00010958,2]
[352138671,1738957841213,-500.0,0.00010958,2]
[352138672,1738957841223,-500.0,0.00010958,2]
[352138673,1738957841233,-500.0,0.00010958,2]
[352138674,1738957841243,-500.0,0.00010958,2]
[352138675,1738957841252,-1467.57,0.00010958,2]
[352138676,1738957841262,-500.0,0.00010958,2]
[352138677,1738957841271,-500.0,0.00010958,2]
[352138678,1738957841283,-500.0,0.00010958,2]
[352138679,1738957841292,-500.0,0.00010958,2]
[352138680,1738957841301,-500.0,0.00010958,2]
[352138681,1738957841310,-500.0,0.00010958,2]
[352138682,1738957841320,-500.0,0.00010958,2]
[352138683,1738957841330,-500.0,0.00010958,2]
[352138684,1738957841339,-500.0,0.00010958,2]
[352138685,1738957841349,-500.0,0.00010958,2]
[352138686,1738957841358,-212.5502707,0.00010958,2]
[352138687,1738957841368,-674.97,0.00010958,2]
[352138688,1738957841378,-500.0,0.00010958,2]
[352138689,1738957841387,-6181.95,0.00010958,2]
[352138690,1738957841397,-500.0,0.00010958,2]
[352138691,1738957841406,-500.0,0.00010958,2]
[352138692,1738957841415,-500.0,0.00010958,2]
[352138693,1738957841425,-591.57814628,0.00010958,2]
[352138694,1738957841435,-575.34,0.00010958,2]
[352138695,1738957841445,-15953.49,0.00010958,2]
[352138696,1738957841454,-500.0,0.00010958,2]
[352138697,1738957841464,-500.0,0.00010958,2]
[352138698,1738957841474,-652.36,0.00010958,2]
[352138699,1738957841484,-500.0,0.00010958,2]
[352138700,1738957841493,-500.0,0.00010958,2]
[352138701,1738957841503,-500.0,0.00010958,2]
[352138702,1738957841513,-2955.39,0.00010958,2]
[352138703,1738957841523,-500.0,0.00010958,2]
[352138704,1738957841533,-500.0,0.00010958,2]
[352138705,1738957841542,-500.0,0.00010958,2]
[352138706,1738957841552,-500.0,0.00010958,2]
[352138707,1738957841562,-500.0,0.00010958,2]
[352138708,1738957841571,-769.82,0.00010958,2]
[352138709,1738957841581,-500.0,0.00010958,2]
[352138710,1738957841591,-500.0,0.00010958,2]
[352138711,1738957841601,-1839.79,0.00010958,2]
[352138712,1738957841611,-500.0,0.00010958,2]
[352138713,1738957841620,-500.0,0.00010958,2]
[352138714,1738957841630,-500.0,0.00010958,2]
[352138715,1738957841639,-500.0,0.00010958,2]
[352138716,1738957841649,-500.0,0.00010958,2]
[352138717,1738957841658,-500.0,0.00010958,2]
[352138718,1738957841668,-501.0601315,0.00010958,2]
[352138719,1738957841677,-6542.15,0.00010958,2]
[352138720,1738957841687,-3863.45,0.00010958,2]
[352138721,1738957841697,-810.92,0.00010958,2]
[352138722,1738957841707,-6635.68,0.00010958,2]
[352138723,1738957841716,-500.0,0.00010958,2]
[352138724,1738957841726,-500.0,0.00010958,2]
[352138725,1738957841736,-500.0,0.00010958,2]
[352138726,1738957841746,-500.0,0.00010958,2]
[352138727,1738957841755,-500.0,0.00010958,2]
[352138728,1738957841764,-500.0,0.00010958,2]
[352138729,1738957841774,-500.0,0.00010958,2]
[352138730,1738957841787,-500.0,0.00010958,2]
[352138731,1738957841797,-500.0,0.00010958,2]
[352138732,1738957841807,-500.0,0.00010958,2]
[352138733,1738957841817,-2895.86,0.00010958,2]
[352138734,1738957841827,-500.0,0.00010958,2]
[352138735,1738957841837,-4352.4,0.00010958,2]
[352138736,1738957841846,-500.0,0.00010958,2]
[352138737,1738957841856,-500.0,0.00010958,2]
[352138738,1738957841865,-500.0,0.00010958,2]
[352138739,1738957841875,-500.0,0.00010958,2]
[352138740,1738957841884,-842.6,0.00010958,2]
[352138741,1738957841893,-18063.87,0.00010958,2]
[352138742,1738957841902,-2161.29,0.00010958,2]
[352138743,1738957841911,-500.0,0.00010958,2]
[352138744,1738957841920,-500.0,0.00010958,2]
[352138745,1738957841930,-500.0,0.00010958,2]
[352138746,1738957841941,-500.0,0.00010958,2]
[352138747,1738957841951,-4851.92,0.00010958,2]
[352138748,1738957841960,-500.0,0.00010958,2]
[352138749,1738957841969,-932.26,0.00010958,2]
[352138750,1738957841979,-500.0,0.00010958,2]
[352138751,1738957841988,-1653.55,0.00010958,2]
[352138752,1738957841997,-1054.77,0.00010958,2]
[352138753,1738957842007,-500.0,0.00010958,2]
[352138754,1738957842018,-500.0,0.00010958,2]
[352138755,1738957842031,-1604.61,0.00010958,2]
[352138756,1738957842040,-1074.99,0.00010958,2]
[352138757,1738957842055,-500.0,0.00010958,2]
[352138758,1738957842064,-629.12,0.00010958,2]
[352138759,1738957842074,-500.0,0.00010958,2]
[352138760,1738957842083,-549.8,0.00010958,2]
[352138761,1738957842093,-500.0,0.00010958,2]
[352138762,1738957842102,-500.0,0.00010958,2]
[352138763,1738957842111,-41940.21,0.00010958,2]
[352138764,1738957842120,-500.0,0.00010958,2]
[352138765,1738957842130,-500.0,0.00010958,2]
[352138766,1738957842139,-500.0,0.00010958,2]
[352138767,1738957842147,-500.0,0.00010958,2]
[352138768,1738957842157,-799.87,0.00010958,2]
[352138769,1738957842166,-500.0,0.00010958,2]
[352138770,1738957842175,-500.0,0.00010958,2]
[352138771,1738957842184,-500.0,0.00010958,2]
[352138772,1738957842193,-1987.85,0.00010958,2]
[352138773,1738957842203,-500.0,0.00010958,2]
[352138774,1738957842213,-500.0,0.00010958,2]
[352138775,1738957842222,-335.01105814,0.00010958,2]
[352138776,1738957842231,-500.0,0.00010958,2]
[352138777,1738957842240,-1944.77,0.00010958,2]
[352138778,1738957842249,-500.0,0.00010958,2]
[352138779,1738957842259,-2225.52,0.00010958,2]
[352138780,1738957842268,-500.0,0.00010958,2]
[352138781,1738957842279,-3045.35,0.00010958,2]
[352138782,1738957842288,-702.62,0.00010958,2]
[352138783,1738957842297,-1041.51,0.00010958,2]
[352138784,1738957842307,-500.0,0.00010958,2]
[352138785,1738957842315,-589.42942773,0.00010958,2]
[352138786,1738957842324,-500.0,0.00010958,2]
[352138787,1738957842333,-500.0,0.00010958,2]
[352138788,1738957842343,-5974.4,0.00010958,2]
[352138789,1738957842352,-500.0,0.00010958,2]
[352138790,1738957842361,-500.0,0.00010958,2]
[352138791,1738957842370,-500.0,0.00010958,2]
[352138792,1738957842379,-500.0,0.00010958,2]
[352138793,1738957842388,-500.0,0.00010958,2]
[352138794,1738957842398,-500.0,0.00010958,2]
[352138795,1738957842407,-534.62,0.00010958,2]
[352138796,1738957842550,-1422.69,0.00010959,2]
[352138797,1738957842560,-4432.18,0.00010959,2]
[352138798,1738957842569,-3693.49,0.00010959,2]
[352138799,1738957842579,-3077.91,0.00010959,2]
[352138800,1738957842588,-2564.92,0.00010959,2]
[352138801,1738957842597,-2137.43,0.00010959,2]
[352138802,1738957842607,-1781.2,0.00010959,2]
[352138803,1738957842616,-429.3977636,0.00010959,2]
[352138804,1738957842626,-306.0,0.00010959,2]
[352138805,1738957842635,-154.5548552,0.00010959,2]
[352138806,1738957842645,-153.0,0.00010959,2]
[352138807,1738957842654,-153.0,0.00010959,2]
[352138808,1738957842663,-154.5548552,0.00010959,2]
[352138809,1738957842673,-153.0,0.00010959,2]
[352138810,1738957842682,-215.772047,0.00010959,2]
[352138812,1738957842692,-215.772047,0.00010959,2]
[352138814,1738957842701,-153.0,0.00010959,2]
[352138815,1738957842710,-153.0,0.00010959,2]
[352138817,1738957842719,-154.5548552,0.00010959,2]
[352138818,1738957842728,-154.5548552,0.00010959,2]
[352138819,1738957842737,-215.772047,0.00010959,2]
[352138820,1738957842746,-154.5548552,0.00010959,2]
[352138821,1738957842755,-153.0,0.00010959,2]
[352138822,1738957842764,-357.1793726,0.00010959,2]
[352138823,1738957842773,-215.772047,0.00010959,2]
[352138825,1738957842784,-500.0,0.00010973,2]
[352138826,1738957842793,-503.18470137,0.00010973,2]
[352138828,1738957842803,-500.0,0.00010973,2]
[352138829,1738957842812,-500.0,0.00010973,2]
[352138830,1738957842821,-267.61131442,0.00010973,2]
[352138831,1738957842830,-500.0,0.00010973,2]
[352138833,1738957842840,-151.0,0.00011,2]
[352138835,1738957842849,-151.0,0.00011,2]
[352138837,1738957842858,-151.0,0.00011,2]
[352138839,1738957842868,-151.0,0.00011,2]
[352138841,1738957842877,-150.982,0.0001106,2]
[352138843,1738957842887,-500.0,0.00011095,2]
[352138845,1738957842895,-399.396092,0.00011095,2]
[352138846,1738957842905,-172.709297,0.00011095,2]
[352138847,1738957842914,-399.396092,0.00011095,2]
[352138848,1738957842923,-172.709297,0.00011095,2]
[352138849,1738957842932,-172.709297,0.00011095,2]
[352138850,1738957842943,-399.396092,0.00011095,2]
[352138851,1738957842952,-399.396092,0.00011095,2]
[352138852,1738957842962,-172.709297,0.00011095,2]
[352138853,1738957842971,-472.66903431,0.00011095,2]
[352138854,1738957842980,-500.0,0.00011095,2]
[352138855,1738957842989,-500.0,0.00011095,2]
[352138856,1738957842999,-253.87792953,0.00011095,2]
[352138857,1738957843008,-500.0,0.00011095,2]
[352138858,1738957843017,-500.0,0.00011095,2]
[352138859,1738957843027,-500.0,0.00011095,2]
[352138860,1738957843036,-500.0,0.00011095,2]
[352138861,1738957843045,-535.28,0.00011095,2]
[352138862,1738957843055,-500.0,0.00011095,2]
[352138864,1738957843064,-500.0,0.00011095,2]
[352138865,1738957843073,-500.0,0.00011095,2]
[352138866,1738957843083,-500.0,0.00011095,2]
[352138867,1738957843094,-500.0,0.00011095,2]
[352138868,1738957843103,-500.0,0.00011095,2]
[352138869,1738957843112,-388.89,0.00011095,2]
[352138870,1738957843122,-318.53,0.00011095,2]
[352138871,1738957843131,-1065.57,0.00011095,2]
[352138872,1738957843140,-500.0,0.00011095,2]
[352138873,1738957843150,-500.0,0.00011095,2]
[352138874,1738957843159,-500.0,0.00011095,2]
[352138875,1738957843168,-500.0,0.00011095,2]
[352138877,1738957843177,-500.0,0.00011095,2]
[352138878,1738957843186,-500.0,0.00011095,2]
[352138879,1738957843196,-500.0,0.00011095,2]
[352138880,1738957843205,-500.0,0.00011095,2]
[352138881,1738957843214,-278.83680919,0.00011095,2]
[352138882,1738957843224,-500.0,0.00011095,2]
[352138883,1738957843233,-571.00024054,0.00011095,2]
[352138884,1738957843242,-1229.42,0.00011095,2]
[352138885,1738957843251,-500.0,0.00011095,2]
[352138886,1738957843261,-500.0,0.00011095,2]
[352138887,1738957843271,-500.0,0.00011095,2]
[352138888,1738957843284,-500.0,0.00011095,2]
[352138889,1738957843293,-957.59,0.00011095,2]
[352138890,1738957843302,-152.73029257,0.00011095,2]
[352138891,1738957843312,-500.0,0.00011095,2]
[352138892,1738957843321,-500.0,0.00011095,2]
[352138893,1738957843332,-500.0,0.00011095,2]
[352138894,1738957843341,-500.0,0.00011095,2]
[352138895,1738957843351,-865.96,0.00011095,2]
[352138896,1738957843362,-250.82977421,0.00011095,2]
[352138897,1738957843370,-909.4,0.00011095,2]
[352138898,1738957843380,-500.0,0.00011095,2]
[352138899,1738957843390,-558.51,0.00011095,2]
[352138900,1738957843399,-500.0,0.00011095,2]
[352138901,1738957843408,-683.28,0.00011095,2]
[352138902,1738957843417,-500.0,0.00011095,2]
[352138903,1738957843427,-500.0,0.00011095,2]
[352138904,1738957843436,-324.37,0.00011095,2]
[352138905,1738957843446,-613.07,0.00011095,2]
[352138906,1738957843455,-500.0,0.00011095,2]
[352138907,1738957843464,-566.03,0.00011095,2]
[352138908,1738957843474,-500.0,0.00011095,2]
[352138910,1738957843483,-500.0,0.00011095,2]
[352138912,1738957843492,-500.0,0.00011095,2]
[352138914,1738957843501,-500.0,0.00011095,2]
[352138915,1738957843510,-1248.11,0.00011095,2]
[352138916,1738957843519,-508.21,0.00011095,2]
[352138917,1738957843529,-858.64,0.00011095,2]
[352138918,1738957843539,-791.89,0.00011095,2]
[352138919,1738957843548,-500.0,0.00011095,2]
[352138920,1738957843558,-500.0,0.00011095,2]
[352138921,1738957843568,-500.0,0.00011095,2]
[352138922,1738957843577,-500.0,0.00011095,2]
[352138923,1738957843587,-500.0,0.00011095,2]
[352138924,1738957843597,-500.0,0.00011095,2]
[352138925,1738957843606,-922.8,0.00011095,2]
[352138926,1738957843615,-500.0,0.00011095,2]
[352138927,1738957843625,-500.0,0.00011095,2]
[352138928,1738957843634,-784.37,0.00011095,2]
[352138929,1738957843643,-894.02,0.00011095,2]
[352138930,1738957843653,-500.0,0.00011095,2]
[352138931,1738957843662,-500.0,0.00011095,2]
[352138932,1738957843671,-500.0,0.00011095,2]
[352138933,1738957843681,-500.0,0.00011095,2]
[352138934,1738957843690,-500.0,0.00011095,2]
[352138935,1738957843699,-500.0,0.00011095,2]
[352138936,1738957843708,-755.49,0.00011095,2]
[352138937,1738957843717,-524.17210782,0.00011095,2]
[352138938,1738957843726,-500.0,0.00011095,2]
[352138939,1738957843736,-456.78622391,0.00011095,2]
[352138940,1738957843745,-500.0,0.00011095,2]
[352138941,1738957843754,-500.0,0.00011095,2]
[352138942,1738957843764,-500.0,0.00011095,2]
[352138943,1738957843774,-1283.52,0.00011095,2]
[352138944,1738957843784,-243.85592244,0.00011095,2]
[352138945,1738957843794,-500.0,0.00011095,2]
[352138946,1738957843805,-500.0,0.00011095,2]
[352138947,1738957843815,-547.89164668,0.00011095,2]
[352138948,1738957843824,-633.13,0.00011095,2]
[352138949,1738957843834,-500.0,0.00011095,2]
[352138950,1738957843843,-500.0,0.00011095,2]
[352138951,1738957843853,-1271.33,0.00011095,2]
[352138952,1738957843862,-500.0,0.00011095,2]
[352138953,1738957843872,-500.0,0.00011095,2]
[352138954,1738957843881,-539.33,0.00011095,2]
[352138955,1738957843891,-500.0,0.00011095,2]
[352138956,1738957843900,-500.0,0.00011095,2]
[352138957,1738957843909,-500.0,0.00011095,2]
[352138958,1738957843921,-500.0,0.00011095,2]
[352138959,1738957843931,-500.0,0.00011095,2]
[352138960,1738957843941,-500.0,0.00011095,2]
[352138961,1738957843957,-500.0,0.00011095,2]
[352138962,1738957843967,-502.97137501,0.00011095,2]
[352138963,1738957843978,-500.0,0.00011095,2]
[352138964,1738957843988,-500.0,0.00011095,2]
[352138965,1738957843997,-500.0,0.00011095,2]
[352138966,1738957844008,-500.0,0.00011095,2]
[352138967,1738957844017,-500.0,0.00011095,2]
[352138968,1738957844027,-2503.53,0.00011095,2]
[352138969,1738957844037,-500.0,0.00011095,2]
[352138970,1738957844046,-500.0,0.00011095,2]
[352138971,1738957844056,-500.0,0.00011095,2]
[352138972,1738957844067,-2117.33,0.00011095,2]
[352138973,1738957844077,-500.0,0.00011095,2]
[352138974,1738957844090,-500.0,0.00011095,2]
[352138975,1738957844102,-500.0,0.00011095,2]
[352138976,1738957844111,-500.0,0.00011095,2]
[352138977,1738957844120,-801.04,0.00011095,2]
[352138978,1738957844129,-500.0,0.00011095,2]
[352138979,1738957844138,-626.97894453,0.00011095,2]
[352138980,1738957844147,-500.0,0.00011095,2]
[352138981,1738957844156,-500.0,0.00011095,2]
[352138982,1738957844166,-500.0,0.00011095,2]
[352138983,1738957844175,-500.0,0.00011095,2]
[352138984,1738957844184,-500.0,0.00011095,2]
[352138985,1738957844195,-500.0,0.00011095,2]
[352138986,1738957844206,-500.0,0.00011095,2]
[352138987,1738957844217,-9615.74,0.00011095,2]
[352138988,1738957844228,-500.0,0.00011095,2]
[352138989,1738957844238,-500.0,0.00011095,2]
[352138990,1738957844248,-1519.57,0.00011095,2]
[352138991,1738957844258,-500.0,0.00011095,2]
[352138992,1738957844267,-704.91,0.00011095,2]
[352138993,1738957844279,-500.0,0.00011095,2]
[352138994,1738957844288,-927.19,0.00011095,2]
[352138995,1738957844297,-500.0,0.00011095,2]
[352138996,1738957844307,-500.0,0.00011095,2]
[352138997,1738957844316,-500.0,0.00011095,2]
[352138998,1738957844326,-500.0,0.00011095,2]
[352138999,1738957844335,-2145.4,0.00011095,2]
[352139000,1738957844344,-500.0,0.00011095,2]
[352139001,1738957844354,-500.0,0.00011095,2]
[352139002,1738957844363,-500.0,0.00011095,2]
[352139003,1738957844373,-500.0,0.00011095,2]
[352139004,1738957844382,-500.0,0.00011095,2]
[352139005,1738957844391,-500.0,0.00011095,2]
[352139006,1738957844400,-500.0,0.00011095,2]
[352139007,1738957844410,-14073.6,0.00011095,2]
[352139008,1738957844419,-876.77,0.00011095,2]
[352139009,1738957844429,-500.0,0.00011095,2]
[352139010,1738957844440,-500.0,0.00011095,2]
[352139011,1738957844450,-500.0,0.00011095,2]
[352139012,1738957844459,-500.0,0.00011095,2]
[352139013,1738957844468,-228.63496614,0.00011095,2]
[352139014,1738957844478,-642.58,0.00011095,2]
[352139015,1738957844487,-500.0,0.00011095,2]
[352139016,1738957844497,-500.0,0.00011095,2]
[352139017,1738957844506,-500.0,0.00011095,2]
[352139018,1738957844515,-500.0,0.00011095,2]
[352139019,1738957844525,-985.06,0.00011095,2]
[352139020,1738957844539,-500.0,0.00011095,2]
[352139021,1738957844548,-2013.84,0.00011095,2]
[352139022,1738957844557,-500.0,0.00011095,2]
[352139023,1738957844567,-500.0,0.00011095,2]
[352139024,1738957844576,-500.0,0.00011095,2]
[352139025,1738957844585,-1087.63,0.00011095,2]
[352139026,1738957844595,-500.0,0.00011095,2]
[352139027,1738957844605,-571.27,0.00011095,2]
[352139028,1738957844615,-500.0,0.00011095,2]
[352139029,1738957844624,-537.68,0.00011095,2]
[352139030,1738957844633,-512.66205982,0.00011095,2]
[352139031,1738957844643,-500.0,0.00011095,2]
[352139032,1738957844652,-500.0,0.00011095,2]
[352139033,1738957844661,-500.0,0.00011095,2]
[352139034,1738957844671,-630.26,0.00011095,2]
[352139035,1738957844680,-500.0,0.00011095,2]
[352139036,1738957844690,-500.0,0.00011095,2]
[352139037,1738957844699,-689.04,0.00011095,2]
[352139038,1738957844709,-592.96,0.00011095,2]
[352139039,1738957844719,-3889.68,0.00011095,2]
[352139040,1738957844728,-500.0,0.00011095,2]
[352139041,1738957844738,-500.0,0.00011095,2]
[352139042,1738957844748,-500.0,0.00011095,2]
[352139043,1738957844757,-500.0,0.00011095,2]
[352139044,1738957844767,-787.35,0.00011095,2]
[352139045,1738957844776,-500.0,0.00011095,2]
[352139046,1738957844787,-731.59,0.00011095,2]
[352139047,1738957844796,-500.0,0.00011095,2]
[352139048,1738957844805,-500.0,0.00011095,2]
[352139049,1738957844815,-500.0,0.00011095,2]
[352139050,1738957844824,-500.0,0.00011095,2]
[352139051,1738957844833,-500.0,0.00011095,2]
[352139052,1738957844843,-500.0,0.00011095,2]
[352139053,1738957844852,-1467.57,0.00011095,2]
[352139054,1738957844861,-500.0,0.00011095,2]
[352139055,1738957844871,-500.0,0.00011095,2]
[352139056,1738957844880,-500.0,0.00011095,2]
[352139057,1738957844890,-500.0,0.00011095,2]
[352139058,1738957844899,-500.0,0.00011095,2]
[352139059,1738957844909,-500.0,0.00011095,2]
[352139060,1738957844919,-500.0,0.00011095,2]
[352139061,1738957844928,-500.0,0.00011095,2]
[352139062,1738957844938,-500.0,0.00011095,2]
[352139063,1738957844952,-674.97,0.00011095,2]
[352139064,1738957844961,-371.48801102,0.00011095,2]
[352139065,1738957844971,-6181.95,0.00011095,2]
[352139066,1738957844980,-500.0,0.00011095,2]
[352139067,1738957844990,-456.16193903,0.00011095,2]
[352139068,1738957844999,-575.34,0.00011095,2]
[352139069,1738957845009,-15953.49,0.00011095,2]
[352139070,1738957845018,-500.0,0.00011095,2]
[352139071,1738957845030,-500.0,0.00011095,2]
[352139072,1738957845040,-652.36,0.00011095,2]
[352139073,1738957845049,-500.0,0.00011095,2]
[352139074,1738957845059,-500.0,0.00011095,2]
[352139075,1738957845068,-500.0,0.00011095,2]
[352139076,1738957845078,-2955.39,0.00011095,2]
[352139077,1738957845087,-500.0,0.00011095,2]
[352139078,1738957845097,-508.06297543,0.00011095,2]
[352139079,1738957845106,-500.0,0.00011095,2]
[352139080,1738957845116,-500.0,0.00011095,2]